bitfinex-derivatives/quotes_ETHF0:USTF0_20250709
["timestamp","ask_amount","ask_price","bid_price","bid_amount"]
[1752101932319,1.3384,2781.2,2781.1,4.86872181]
[1752101932522,1.3384,2781.2,2781.1,6.47619699]
[1752101933318,1.6158,2781.4,2781.3,0.71883]
[1752101933511,0.788,2781.7,2781.3,1.21417181]
[1752101933718,0.71875,2781.6,2781.5,0.71876]
[1752101933911,2.34535,2781.6,2781.5,4.42190181]
[1752101934118,3.68095,2781.6,2781.5,4.42190181]
[1752101934622,3.68095,2781.6,2781.5,4.86933035]
[1752101935021,3.68095,2781.6,2781.5,4.42263035]
[1752101935223,3.68095,2781.6,2781.5,4.86933035]
[1752101935621,3.68095,2781.6,2781.5,4.15057035]
[1752101936023,3.68095,2781.6,2781.5,3.70387035]
[1752101936217,1.3356,2781.6,2781.5,4.15057035]
[1752101936416,3.2179916,2782.8,2781.5,63.91637035]
[1752101936622,5.4511916,2782.9,2782.7,3.2078]
[1752101936923,5.4511916,2782.9,2782.7,3.92625]
[1752101936924,1.34864,2782.8,2782.7,3.92625]
[1752101937124,0.6302,2782.8,2782.7,3.92625]
[1752101937325,0.6302,2782.8,2782.7,4.42107276]
[1752101939629,0.9964,2782.9,2782.8,0.71844]
[1752101939923,1.9345,2783.0,2782.9,0.71842]
[1752101940128,1.9345,2783.0,2782.9,1.21324276]
[1752101940329,2.5647,2783.0,2782.9,1.21324276]
[1752101940520,3.28309,2783.0,2782.9,0.49385781]
[1752101940723,0.71844,2782.8,2782.7,3.2078]
[1752101941030,2.75835354,2782.8,2782.7,3.70176842]
[1752101941223,7.75835354,2782.8,2782.7,3.2078]
[1752101941632,9.38495354,2782.8,2782.7,3.2078]
[1752101943425,0.71861,2782.2,2782.0,1.60300678]
[1752101943624,0.9964,2782.4,2782.1,4.07570104]
[1752101943820,0.9964,2782.4,2782.1,3.5818]
[1752101944024,0.9964,2782.4,2782.3,0.71857]
[1752101944219,1.6266,2782.4,2782.3,1.21283931]
[1752101944426,1.6266,2782.4,2782.3,0.71857]
[1752101944923,1.6266,2782.4,2782.1,3.2078]
[1752101945128,3.2078,2782.2,2781.5,1.60300678]
[1752101945430,1.34897,2781.6,2781.4,1.60300678]
[1752101945627,1.34897,2781.6,2781.5,0.49441369]
[1752101946626,0.71878,2781.5,2781.3,0.71883]
[1752101946826,1.34898,2781.5,2781.4,1.14137699]
[1752101947028,0.6302,2781.5,2781.4,1.86018699]
[1752101948829,1.34898,2781.5,2781.4,1.14137699]
[1752101949225,1.34898,2781.5,2781.4,0.49457699]
[1752101950033,3.2078,2781.9,2781.4,2.08007699]
[1752101950234,5.00453,2781.9,2781.5,0.49457699]
[1752101950531,0.71881,2781.4,2781.3,2.03991354]
[1752101950734,1.32181,2781.4,2781.3,1.15224826]
[1752101951629,0.603,2781.4,2781.3,1.15224826]
[1752101951822,0.71878,2781.5,2781.4,0.71879]
[1752101952026,0.71878,2781.5,2781.4,1.37571]
[1752101953422,0.71878,2781.5,2781.4,0.6569]
[1752101953933,0.71878,2781.5,2781.4,1.37571]
[1752101954130,1.32178,2781.5,2781.4,0.6569]
[1752101954433,0.71883,2781.3,2781.2,3.2078]
[1752101954625,0.71882,2781.4,2781.3,0.71881]
[1752101954827,0.71882,2781.4,2781.3,1.37571]
[1752101955533,0.71874,2781.7,2781.6,0.71873]
[1752101955729,1.32174,2781.7,2781.6,1.37563]
[1752101958731,1.32174,2781.7,2781.6,1.37565]
[1752101959231,1.32174,2781.7,2781.6,0.6569]
[1752101959432,0.71875,2781.6,2781.5,0.71876]
[1752101959630,0.71878,2781.5,2781.4,2.03759]
[1752101959936,5.00451,2781.9,2781.2,4.80962371]
[1752101959937,1.79692,2781.6,2781.2,4.80962371]
[1752101960130,0.603,2781.4,2781.3,0.6569]
[1752101960835,0.71883,2781.3,2781.2,3.2078]
[1752101961032,1.32183,2781.3,2781.2,3.2078]
[1752101961233,0.71883,2781.3,2781.2,3.8647]
[1752101961431,1.32183,2781.3,2781.2,3.8647]
[1752101961735,1.32183,2781.3,2781.2,4.58356]
[1752101961930,1.32183,2781.3,2781.2,6.18538371]
[1752101964235,0.603,2781.3,2781.2,6.18538371]
[1752101965832,1.32183,2781.3,2781.2,6.18538371]
[1752101966137,1.32183,2781.3,2781.2,5.46652371]
[1752101966332,1.32183,2781.3,2781.2,3.8647]
[1752101966537,0.71886,2781.2,2781.1,1.60182371]
[1752101966837,0.71888,2781.1,2781.0,1.60182371]
[1752101967032,1.32188,2781.1,2781.0,2.25872371]
[1752101967428,1.32188,2781.1,2781.0,2.09028761]
[1752101967634,1.32188,2781.1,2781.0,3.46609761]
[1752101967932,1.32188,2781.1,2781.0,1.1453639]
[1752101968133,1.32188,2781.1,2781.0,1.8642739]
[1752101968541,1.32188,2781.1,2781.0,1.1453639]
[1752101968734,1.32188,2781.1,2781.0,1.65860593]
[1752101969840,1.32188,2781.1,2781.0,2.37751593]
[1752101970341,1.32188,2781.1,2781.0,1.00170593]
[1752101970542,1.32188,2781.1,2781.0,1.65860593]
[1752101971941,1.32188,2781.1,2781.0,3.26042964]
[1752101972937,1.32188,2781.1,2781.0,3.97933964]
[1752101973141,1.32188,2781.1,2781.0,3.46609761]
[1752101973345,1.32188,2781.1,2781.0,4.01021243]
[1752101973543,1.32188,2781.1,2781.0,7.21801243]
[1752101974338,1.32188,2781.1,2781.0,4.01021243]
[1752101974538,1.32188,2781.1,2781.0,3.29404833]
[1752101975443,1.32188,2781.1,2781.0,1.1453639]
[1752101976143,1.32188,2781.1,2781.0,1.8642739]
[1752101976543,1.32188,2781.1,2781.0,1.1453639]
[1752101977145,1.32188,2781.1,2781.0,0.6569]
[1752101977345,1.32188,2781.1,2781.0,1.14905155]
[1752101983046,0.0112,2781.2,2781.0,5.29185935]
[1752101983352,0.0112,2781.2,2781.1,5.43148976]
[1752101983647,0.0112,2781.2,2781.1,2.21258196]
[1752101984543,0.0112,2781.2,2781.1,5.43607893]
[1752101985848,0.0112,2781.2,2781.1,4.43452852]
[1752101986048,0.0112,2781.2,2781.1,4.43419879]
[1752101986252,0.0112,2781.2,2781.1,1.21070182]
[1752101986644,0.0112,2781.2,2781.1,2.79150182]
[1752101987951,420.876,2787.0,2781.1,2.79150182]
[1752101987952,3.9365216,2782.5,2782.4,0.71855]
[1752101988248,3.9365216,2782.5,2782.4,2.38407634]
[1752101988549,0.71853,2782.5,2782.4,2.38407634]
[1752101988747,1.37903,2782.5,2782.4,2.38407634]
[1752101988948,1.37903,2782.5,2782.4,1.67214262]
[1752101989149,1.37903,2782.5,2782.4,1.02914262]
[1752101990658,1.37903,2782.5,2782.4,1.67214262]
[1752101990950,1.37903,2782.5,2782.4,1.02914262]
[1752101991747,2.35173,2782.5,2782.4,1.02914262]
[1752101996448,7.35173,2782.5,2782.4,1.02914262]
[1752101996648,7.35173,2782.5,2781.9,0.71867]
[1752101996649,0.71865,2782.0,2781.9,0.71867]
[1752101996848,0.71865,2782.0,2781.9,2.36799778]
[1752101997147,1.37915,2782.0,2781.9,2.36799778]
[1752101997355,1.37915,2782.0,2781.9,2.36800778]
[1752101997547,0.6605,2782.0,2781.9,2.36800778]
[1752101997852,0.6605,2782.0,2781.9,1.8773502]
[1752101998751,1.37915,2782.0,2781.9,1.8773502]
[1752101999352,1.37915,2782.0,2781.9,1.1586702]
[1752101999548,1.37915,2782.0,2781.9,1.8773502]
[1752101999849,1.37915,2782.0,2781.9,0.5156702]
[1752102000051,1.37915,2782.0,2781.9,1.1586702]
[1752102000245,4.38959669,2782.0,2781.9,0.5156702]
[1752102000452,1.79676,2781.8,2781.4,1.61099151]
[1752102000656,0.71883,2781.3,2781.2,1.61099151]
[1752102000854,0.71883,2781.3,2781.0,2.14798868]
[1752102000855,0.71891,2781.0,2780.9,1.61099151]
[1752102001054,3.2078,2781.3,2780.9,0.643]
[1752102001250,1.37941,2781.0,2780.9,0.643]
[1752102001952,0.71893,2780.9,2780.8,3.2078]
[1752102002154,0.71893,2780.9,2780.8,3.8508]
[1752102002351,0.71893,2780.9,2780.8,5.1781]
[1752102002555,5.00493,2781.3,2780.8,3.2078]
[1752102002754,1.37943,2780.9,2780.8,3.8508]
[1752102003354,1.37943,2780.9,2780.8,3.2078]
[1752102003653,2.45791,2780.9,2780.5,3.2078]
[1752102003854,0.71901,2780.6,2780.5,3.2078]
[1752102004049,0.71901,2780.6,2780.5,3.8508]
[1752102004449,0.719,2780.7,2780.5,4.56984]
[1752102004649,0.719,2780.7,2780.5,5.78874]
[1752102004852,0.71901,2780.6,2780.5,5.0697]
[1752102005251,0.71901,2780.6,2780.5,5.78874]
[1752102005652,0.71901,2780.6,2780.5,6.0075]
[1752102005958,0.719,2780.7,2780.5,6.72654]
[1752102006254,0.9731,2781.1,2780.5,8.04524669]
[1752102006558,0.71894,2780.9,2780.7,0.71897]
[1752102006853,3.2078,2781.7,2780.9,1.79734]
[1752102007052,3.2078,2781.7,2781.4,0.7188]
[1752102007053,0.71875,2781.6,2781.4,0.7188]
[1752102007253,0.71875,2781.6,2781.5,2.00747]
[1752102007452,3.2078,2781.7,2781.6,0.71875]
[1752102009056,0.71873,2781.7,2781.6,0.71875]
[1752102009258,0.71873,2781.7,2781.6,3.92655]
[1752102009658,0.71872,2781.8,2781.7,0.71871]
[1752102009959,0.7187,2781.9,2781.8,0.71869]
[1752102010161,1.3708,2781.9,2781.8,0.71869]
[1752102010562,0.7187,2781.9,2781.8,1.32679]
[1752102010757,1.66267,2782.0,2781.9,0.71868]
[1752102010963,1.37077,2782.0,2781.9,0.71868]
[1752102012058,1.37077,2782.0,2781.9,1.32678]
[1752102012757,1.37077,2782.0,2781.9,0.6081]
[1752102013166,1.37077,2782.0,2781.9,0.71868]
[1752102013463,0.71869,2781.9,2781.7,0.71873]
[1752102013665,0.6521,2781.8,2781.7,1.32683]
[1752102014962,0.6521,2781.8,2781.7,0.71873]
[1752102015159,0.6521,2781.8,2781.7,1.32683]
[1752102015563,1.3708,2781.8,2781.7,1.32683]
[1752102015757,0.6521,2781.8,2781.7,1.32683]
[1752102016061,1.3708,2781.8,2781.7,0.6081]
[1752102016264,1.3708,2781.8,2781.4,5.65049151]
[1752102016265,0.71873,2781.7,2781.4,1.61099151]
[1752102016563,2.33303,2781.7,2781.6,3.8159]
[1752102016864,0.9622,2781.7,2781.6,4.53465]
[1752102017063,2.33303,2781.7,2781.6,4.53465]
[1752102017255,2.33303,2781.7,2781.6,3.8159]
[1752102017766,3.30883,2781.7,2781.6,3.2078]
[1752102017960,0.71883,2781.3,2781.2,3.2078]
[1752102018159,1.37093,2781.3,2781.2,3.2078]
[1752102018456,1.37093,2781.3,2781.2,3.8159]
[1752102018659,1.37093,2781.3,2781.2,3.2078]
[1752102018864,0.71888,2781.2,2781.1,0.71888]
[1752102019067,1.37098,2781.2,2781.0,0.71889]
[1752102019260,1.37098,2781.2,2781.1,0.6081]
[1752102019565,1.37098,2781.2,2781.1,1.32698]
[1752102020263,3.66564669,2781.2,2780.9,4.81879151]
[1752102020467,0.9758,2781.2,2781.0,0.71889]
[1752102020662,0.6521,2781.1,2780.9,5.53771151]
[1752102020867,0.71891,2781.0,2780.9,3.2078]
[1752102021069,0.71891,2781.0,2780.9,3.8159]
[1752102022367,0.71891,2781.0,2780.9,4.53483]
[1752102022569,2.3344,2781.1,2780.9,4.53483]
[1752102022762,0.71891,2781.0,2780.9,4.53483]
[1752102023368,0.71891,2781.0,2780.9,3.2078]
[1752102023664,3.41273,2781.1,2780.6,4.9188]
[1752102023965,0.71899,2780.7,2780.6,3.2078]
[1752102024165,0.71899,2780.7,2780.6,4.53491]
[1752102024366,0.71904,2780.5,2780.4,1.61099151]
[1752102024565,0.71906,2780.4,2780.3,4.81879151]
[1752102024868,0.71906,2780.4,2780.3,5.42689151]
[1752102025068,0.71906,2780.4,2780.3,4.81446055]
[1752102025269,1.37116,2780.4,2780.3,5.42256055]
[1752102025470,1.37116,2780.4,2780.3,3.8159]
[1752102026164,1.37116,2780.4,2780.3,4.53499]
[1752102026463,1.37116,2780.4,2780.3,3.8159]
[1752102028065,2.34696,2780.4,2780.3,3.8159]
[1752102028469,2.34696,2780.4,2780.3,3.2078]
[1752102028765,0.71912,2780.2,2780.1,1.60666055]
[1752102028969,0.71912,2780.2,2780.0,3.2078]
[1752102028970,0.71914,2780.1,2780.0,4.81446055]
[1752102029171,1.37124,2780.1,2780.0,5.42281071]
[1752102029373,1.37124,2780.1,2780.0,3.8159]
[1752102030174,0.71914,2780.1,2780.0,6.14204131]
[1752102030371,0.71914,2780.1,2780.0,5.42287131]
[1752102030570,1.37124,2780.1,2780.0,5.42287131]
[1752102030770,1.37124,2780.1,2780.0,3.8159]
[1752102031166,0.71914,2780.1,2780.0,3.8159]
[1752102031478,1.37124,2780.1,2780.0,4.53507]
[1752102031667,1.37124,2780.1,2780.0,3.8159]
[1752102031872,1.37124,2780.1,2780.0,4.53507]
[1752102032373,1.37124,2780.1,2780.0,3.8159]
[1752102032679,1.37124,2780.1,2780.0,4.53507]
[1752102033081,1.37124,2780.1,2780.0,3.8159]
[1752102033983,1.37124,2780.1,2780.0,4.53507]
[1752102034180,1.37124,2780.1,2780.0,2.31927]
[1752102034486,2.3055,2780.2,2780.1,0.71914]
[1752102034688,0.71901,2780.7,2780.6,0.71898]
[1752102034886,0.71901,2780.7,2780.6,1.32708]
[1752102035182,0.71892,2781.0,2780.9,0.71893]
[1752102035385,0.71892,2781.0,2780.9,2.31903]
[1752102036783,0.71892,2781.0,2780.9,1.6001]
[1752102037086,0.71901,2780.6,2780.5,0.992]
[1752102037288,0.719,2780.7,2780.5,3.63702]
[1752102037587,0.719,2780.7,2780.6,1.66971]
[1752102037783,0.719,2780.7,2780.6,1.5588]
[1752102038189,0.71898,2780.8,2780.7,0.71896]
[1752102038384,0.71898,2780.8,2780.7,0.6081]
[1752102038690,1.37108,2780.8,2780.7,0.6081]
[1752102038888,0.71896,2780.9,2780.8,0.71895]
[1752102039089,2.3834,2781.2,2780.8,1.5588]
[1752102039285,2.3834,2781.2,2781.1,0.71888]
[1752102039478,2.3834,2781.2,2781.1,2.28058]
[1752102039679,4.89945,2781.3,2781.2,0.71886]
[1752102039884,4.89945,2781.3,2781.2,1.32986]
[1752102040086,3.2078,2781.3,2781.2,1.32986]
[1752102040284,3.2179916,2782.0,2781.2,1.5617]
[1752102040285,4.1867,2781.7,2781.2,1.5617]
[1752102040485,4.1867,2781.7,2781.6,0.71875]
[1752102040791,3.2078,2781.7,2781.6,2.28045]
[1752102040986,3.8362,2781.7,2781.6,2.28045]
[1752102041187,3.2078,2781.7,2781.6,2.28045]
[1752102042085,3.8362,2781.7,2781.6,2.28045]
[1752102042693,3.2078,2781.7,2781.6,2.28045]
[1752102044892,0.7187,2781.8,2781.7,0.71873]
[1752102045293,1.3471,2781.8,2781.7,1.32973]
[1752102047486,0.6284,2781.8,2781.7,1.32973]
[1752102048495,1.3471,2781.8,2781.7,1.32973]
[1752102048696,0.6284,2781.8,2781.7,1.32973]
[1752102048995,3.59384669,2781.8,2781.7,1.32973]
[1752102049187,4.31254669,2781.8,2781.7,1.32973]
[1752102049393,4.31254669,2781.8,2781.7,0.71873]
[1752102049595,4.31254669,2781.8,2781.5,0.71875]
[1752102049596,0.71874,2781.7,2781.5,0.71875]
[1752102049791,0.6284,2781.6,2781.3,4.81477131]
[1752102049991,0.6284,2781.6,2781.4,0.71879]
[1752102049992,2.75652669,2781.5,2781.4,0.71879]
[1752102050195,0.71881,2781.4,2781.3,2.32578131]
[1752102050396,1.5903,2781.4,2781.3,2.93678131]
[1752102051096,1.5903,2781.4,2781.3,1.32981]
[1752102051586,2.30911,2781.4,2781.3,1.32981]
[1752102051789,0.71888,2781.1,2781.0,1.60697131]
[1752102051987,0.71891,2781.0,2780.9,1.60697131]
[1752102052187,0.71896,2780.8,2780.7,0.86318438]
[1752102052393,0.71901,2780.6,2780.5,3.22198303]
[1752102052596,0.71904,2780.5,2780.4,3.22198303]
[1752102052890,4.61388669,2780.5,2780.4,3.22198303]
[1752102053097,5.54158669,2780.5,2780.4,3.22198303]
[1752102053297,0.71909,2780.3,2780.2,3.22198303]
[1752102053490,0.71914,2780.1,2780.0,3.2078]
[1752102053692,1.34754,2780.1,2780.0,3.2078]
[1752102054095,0.6284,2780.1,2780.0,3.2078]
[1752102054392,1.34754,2780.1,2780.0,3.8188]
[1752102055195,0.7191,2780.3,2780.1,0.71913]
[1752102055392,0.71908,2780.4,2780.2,1.33011]
[1752102055887,0.6284,2780.3,2780.2,1.33011]
[1752102056092,3.2078,2780.5,2780.3,0.71908]
[1752102056396,3.2078,2780.5,2780.4,2.28076]
[1752102058094,0.71899,2780.8,2780.4,1.5617]
[1752102058287,0.71899,2780.8,2780.7,3.92677]
[1752102058490,0.9802,2781.0,2780.9,0.71892]
[1752102058491,0.71894,2781.0,2780.9,0.71892]
[1752102058795,0.71894,2781.0,2780.9,2.28062]
[1752102060390,0.6284,2781.0,2780.7,3.92677]
[1752102060897,0.71896,2780.8,2780.7,3.92677]
[1752102061099,1.34736,2780.8,2780.7,4.53777]
[1752102061300,0.6284,2780.8,2780.7,4.53777]
[1752102061696,0.71894,2780.9,2780.8,0.71896]
[1752102061891,1.34734,2780.9,2780.8,1.32996]
[1752102062093,7.7637,2781.2,2780.8,1.32996]
[1752102062094,0.71893,2781.0,2780.9,0.71893]
[1752102062299,1.34733,2781.0,2780.9,1.32993]
[1752102062501,0.6284,2781.0,2780.9,1.32993]
[1752102062898,1.34731,2781.0,2780.9,1.32993]
[1752102063300,1.34731,2781.0,2780.9,0.611]
[1752102064303,0.71896,2780.9,2780.4,4.441]
[1752102064500,0.71896,2780.8,2780.6,0.71899]
[1752102064701,0.6284,2780.7,2780.6,1.32999]
[1752102064897,0.6284,2780.7,2780.6,0.71899]
[1752102065105,8.87374669,2781.2,2780.9,0.71892]
[1752102065301,0.6284,2781.0,2780.9,0.611]
[1752102065496,0.6284,2781.0,2780.8,0.71894]
[1752102065805,1.34733,2781.0,2780.9,1.32993]
[1752102066702,0.6284,2781.0,2780.9,0.611]
[1752102066902,0.7189,2781.1,2780.9,0.611]
[1752102067103,0.71891,2781.0,2780.9,0.611]
[1752102067302,1.34731,2781.0,2780.9,0.611]
[1752102067608,0.6284,2781.0,2780.9,2.28263]
[1752102067905,5.56,2781.2,2780.9,1.5637]
[1752102068104,0.71891,2781.0,2780.9,2.28262]
[1752102068507,0.7189,2781.1,2781.0,0.7189]
[1752102068807,0.71891,2781.0,2780.9,1.67161]
[1752102069200,1.34411,2781.0,2780.9,2.32811]
[1752102069404,1.34411,2781.0,2780.9,1.37541]
[1752102070605,0.71891,2781.0,2780.9,1.37541]
[1752102070804,1.34411,2781.0,2780.9,1.37541]
[1752102071204,1.34411,2781.0,2780.9,0.6565]
[1752102071405,0.71896,2780.8,2780.7,3.2078]
[1752102071602,2.66294669,2780.8,2780.5,0.71902]
[1752102071797,0.71901,2780.6,2780.5,0.71902]
[1752102072102,0.71904,2780.5,2780.4,3.2078]
[1752102072302,1.34424,2780.5,2780.4,4.58336]
[1752102072497,1.34424,2780.5,2780.4,0.6565]
[1752102072906,0.71909,2780.3,2780.2,0.7191]
[1752102073103,1.34429,2780.3,2780.2,1.3756]
[1752102073303,0.71907,2780.4,2780.3,0.71907]
[1752102073505,1.34427,2780.4,2780.3,1.37557]
[1752102073707,0.71904,2780.5,2780.4,0.71904]
[1752102073906,0.71904,2780.5,2780.4,1.37554]
[1752102074306,1.34424,2780.5,2780.4,1.37554]
[1752102075104,1.34424,2780.5,2780.4,0.6565]
[1752102078705,1.34424,2780.5,2780.4,1.37556]
[1752102079309,1.34424,2780.5,2780.4,0.6565]
[1752102080407,0.71906,2780.4,2780.3,0.71907]
[1752102080610,1.34426,2780.4,2780.3,1.37557]
[1752102080810,1.34426,2780.4,2780.3,0.6565]
[1752102081012,0.71912,2780.3,2780.2,0.7191]
[1752102081210,0.71912,2780.3,2780.2,1.3756]
[1752102081712,1.34432,2780.3,2780.2,1.3756]
[1752102082011,0.71912,2780.3,2780.2,1.3756]
[1752102082408,1.34432,2780.3,2780.2,1.3756]
[1752102082910,0.71912,2780.2,2780.1,2.14501579]
[1752102083112,1.34432,2780.2,2780.1,2.80151579]
[1752102083304,0.71914,2780.1,2780.0,0.71916]
[1752102083509,2.36204,2780.1,2780.0,2.80195283]
[1752102086009,3.31294,2780.1,2780.0,2.14545283]
[1752102086205,0.71919,2779.9,2779.8,3.22198303]
[1752102086411,0.71922,2779.8,2779.7,3.22198303]
[1752102086713,0.71927,2779.6,2779.5,3.22198303]
[1752102086913,1.34447,2779.6,2779.5,3.22198303]
[1752102087309,0.7193,2779.5,2779.4,3.22198303]
[1752102087612,2.3628,2779.5,2779.4,3.87848303]
[1752102087811,2.3628,2779.5,2779.4,3.22198303]
[1752102088009,2.3628,2779.5,2779.4,0.6565]
[1752102088515,1.0183,2779.5,2779.4,2.32852]
[1752102088713,0.71925,2779.7,2779.4,1.6092]
[1752102088914,0.71925,2779.7,2779.5,3.2078]
[1752102089121,1.34445,2779.7,2779.6,1.37577]
[1752102089308,1.34445,2779.7,2779.6,0.6565]
[1752102089510,1.79825,2779.5,2779.1,3.22198303]
[1752102089710,2.03774669,2779.2,2779.0,3.22198303]
[1752102089914,2.75711669,2779.2,2779.1,3.87848303]
[1752102090107,2.75711669,2779.2,2779.1,0.6565]
[1752102090813,2.75711669,2779.2,2779.1,1.37589]
[1752102090814,0.71937,2779.2,2779.1,1.37589]
[1752102091206,0.71937,2779.3,2779.2,0.71937]
[1752102091411,0.9789,2779.4,2779.1,1.37588]
[1752102091412,0.71937,2779.2,2779.1,1.37588]
[1752102091819,0.9789,2779.4,2779.1,1.37588]
[1752102091820,0.9789,2779.4,2779.3,0.71935]
[1752102092116,0.7193,2779.5,2779.4,0.71932]
[1752102092506,0.71931,2779.5,2779.4,0.71931]
[1752102092712,0.71933,2779.4,2779.3,0.71933]
[1752102092912,1.34453,2779.4,2779.3,0.71933]
[1752102093109,0.71932,2779.5,2779.4,0.71932]
[1752102093414,0.71932,2779.4,2779.3,3.64973]
[1752102094419,0.71932,2779.4,2779.3,2.9304]
[1752102094614,1.34452,2779.4,2779.3,0.6565]
[1752102095211,0.6252,2779.4,2779.0,0.71942]
[1752102095419,0.71937,2779.2,2779.1,0.7194]
[1752102095615,1.34457,2779.2,2779.1,1.3759]
[1752102096622,1.34457,2779.2,2779.1,0.6565]
[1752102097516,0.71943,2779.0,2778.9,3.2078]
[1752102097719,0.71943,2779.0,2778.9,3.8643]
[1752102097912,1.34463,2779.0,2778.9,4.58375]
[1752102098522,0.71941,2779.1,2779.0,0.71943]
[1752102098719,1.34461,2779.1,2779.0,1.37593]
[1752102098921,0.71941,2779.1,2779.0,0.6565]
[1752102099321,0.71943,2779.0,2778.9,3.2078]
[1752102099522,1.36833,2779.0,2778.9,3.2078]
[1752102099725,2.37053,2779.0,2778.9,3.2078]
[1752102100119,2.37053,2779.0,2778.9,3.8638]
[1752102101521,2.37053,2779.0,2778.9,0.656]
[1752102102324,4.29913,2779.0,2778.9,1.37545]
[1752102102819,4.29913,2779.0,2778.9,0.656]
[1752102103625,4.29913,2779.0,2778.9,1.37545]
[1752102104125,4.29913,2779.0,2778.9,0.656]
[1752102104520,1.9286,2779.0,2778.9,5.54695]
[1752102105126,2.64803,2779.0,2778.9,5.54695]
[1752102105323,2.64803,2779.0,2778.9,6.78225]
[1752102106028,1.9286,2779.0,2778.9,6.78225]
[1752102106824,0.71934,2779.4,2778.9,11.78225]
[1752102107024,0.71934,2779.4,2779.3,0.71935]
[1752102107218,0.71934,2779.4,2779.3,2.33905]
[1752102107418,1.36824,2779.4,2779.3,2.33905]
[1752102107623,1.36824,2779.4,2779.3,0.656]
[1752102107624,0.71934,2779.4,2779.3,0.656]
[1752102107827,1.36824,2779.4,2779.3,1.37535]
[1752102108426,0.71935,2779.3,2779.2,0.71936]
[1752102108628,1.36825,2779.3,2779.2,1.37536]
[1752102109124,0.6489,2779.3,2779.2,1.37536]
[1752102109326,3.04581,2779.5,2779.4,0.71932]
[1752102109525,3.04581,2779.5,2779.4,1.37532]
[1752102109727,3.69471,2779.5,2779.4,1.37532]
[1752102110830,3.69471,2779.5,2779.4,0.71932]
[1752102111029,0.71931,2779.5,2779.4,1.37532]
[1752102111430,1.36821,2779.5,2779.4,1.37532]
[1752102112830,1.36821,2779.5,2779.4,0.71932]
[1752102113030,0.71935,2779.4,2779.3,0.71933]
[1752102113226,0.71932,2779.5,2779.4,0.7193]
[1752102113431,2.37339,2779.6,2779.5,0.71927]
[1752102113724,5.04519,2779.6,2779.2,3.2078]
[1752102113931,5.04519,2779.6,2778.7,5.02070303]
[1752102113932,5.5108,2779.6,2778.7,3.22198303]
[1752102114126,3.0223,2779.6,2779.5,1.3753]
[1752102114332,3.0223,2779.6,2779.5,0.656]
[1752102114533,3.0223,2779.6,2779.5,1.3753]
[1752102115430,1.3682,2779.6,2779.5,1.3753]
[1752102115832,1.3682,2779.6,2779.5,0.656]
[1752102116030,1.3682,2779.6,2779.5,1.3753]
[1752102116836,0.7193,2779.6,2779.5,0.7193]
[1752102117035,1.3682,2779.6,2779.5,1.3753]
[1752102117232,0.6489,2779.6,2779.5,0.656]
[1752102117429,0.71927,2779.6,2779.5,0.656]
[1752102117633,1.36817,2779.6,2779.5,1.3753]
[1752102118336,0.71926,2779.7,2779.6,0.71927]
[1752102118636,1.36816,2779.7,2779.6,1.37527]
[1752102120236,0.71924,2779.7,2779.6,2.33897]
[1752102120640,1.36814,2779.7,2779.6,2.33897]
[1752102120841,2.9803,2779.8,2779.7,0.71924]
[1752102120842,3.69954,2779.8,2779.7,0.71924]
[1752102121140,2.41454,2779.8,2779.7,1.37524]
[1752102121640,0.7193,2779.6,2779.4,2.14438282]
[1752102121841,1.3682,2779.6,2779.5,1.37528]
[1752102122136,1.3682,2779.6,2779.5,0.656]
[1752102122335,1.3682,2779.6,2779.3,6.20842]
[1752102122336,0.71932,2779.4,2779.3,6.20842]
[1752102122842,1.00269655,2779.7,2779.5,0.71929]
[1752102123042,0.71932,2779.5,2779.4,0.7193]
[1752102123242,1.36822,2779.5,2779.4,1.3753]
[1752102124137,1.36822,2779.5,2779.4,2.339]
[1752102124735,1.36822,2779.5,2779.4,0.7193]
[1752102124941,0.71932,2779.4,2779.3,3.2078]
[1752102125140,0.71937,2779.2,2779.1,2.14438282]
[1752102125334,0.7194,2779.1,2779.0,3.10808282]
[1752102125539,1.3683,2779.1,2779.0,3.76408282]
[1752102125741,0.7194,2779.1,2779.0,3.76408282]
[1752102125942,1.3683,2779.1,2779.0,4.48349282]
[1752102126244,1.3683,2779.1,2779.0,2.33911]
[1752102126443,0.71938,2779.2,2779.1,0.71937]
[1752102126946,0.71938,2779.2,2779.1,2.33907]
[1752102128440,4.414,2779.8,2779.1,1.6197]
[1752102128441,1.9885,2779.6,2779.1,1.6197]
[1752102128743,0.71932,2779.5,2779.4,0.7193]
[1752102129238,1.35912,2779.5,2779.4,1.3704]
[1752102129544,0.7193,2779.5,2779.4,1.3704]
[1752102129842,0.7193,2779.5,2779.4,2.298]
[1752102130041,0.7193,2779.5,2779.4,3.5236]
[1752102131136,1.3591,2779.5,2779.2,6.27978282]
[1752102131344,0.71935,2779.3,2779.2,3.79134282]
[1752102131538,0.71935,2779.3,2779.2,7.65024282]
[1752102131743,0.71934,2779.4,2779.3,0.71933]
[1752102131939,0.71934,2779.4,2779.3,1.37043]
[1752102132141,0.71934,2779.4,2779.3,2.29803]
[1752102132340,0.71934,2779.4,2779.3,3.54103]
[1752102133341,1.35914,2779.4,2779.3,3.54103]
[1752102133842,0.71934,2779.4,2779.3,3.54103]
[1752102134743,1.72591,2779.5,2779.4,0.71932]
[1752102134939,2.36571,2779.5,2779.4,1.37042]
[1752102141338,2.36571,2779.5,2779.4,0.71932]
[1752102141539,0.71932,2779.4,2779.2,2.14438282]
[1752102141743,0.71935,2779.3,2779.2,2.14438282]
[1752102141947,0.71935,2779.3,2779.2,2.79548282]
[1752102142140,0.71935,2779.3,2779.2,2.14438282]